Cogmind - Beta 15 @@@ ROGUE MODE // 2025.06.26 @ 14:59:34 Player: 7604 Result: Destroyed by Dirty Bomb Trap Performance ------------- Evolutions (0) 0 Regions Visited (2) 400 Robots Destroyed (42) 210 Value Destroyed (775) 775 Prototype IDs (0) 0 Alien Tech Used (0) 0 Bonus (0) 0 TOTAL SCORE: 1385 Bonus ------- None Cogmind --------- Core Integrity 0/250 Matter 294/300 Energy 240/250 System Corruption 0% Temperature Cool (0) Movement Treading (320) Ox2 Location -10/Mines Parts ------- > --- POWER (1) -------- Ion Engine > --- PROPULSION (2) --- Light Treads Light Treads > --- UTILITY (2) ------ Huge Storage Unit Light Armor Plating > --- WEAPON (2) ------- (None) > --- INVENTORY (25) --- Ion Engine Light Ion Engine Light Treads Heat Sink Heat Sink Heat Sink High-capacity Storage Unit Seismic Detector Seismic Detector Seismic Detector ECM Suite Rocket Launcher Mini Grenade Launcher Mini Grenade Launcher Mining Laser Peak State ------------ > --- POWER ------------ Light Ion Engine > --- PROPULSION ------- Light Treads Light Treads > --- UTILITY ---------- High-capacity Storage Unit Seismic Detector > --- WEAPON ----------- Light Assault Rifle Mini Grenade Launcher > --- INVENTORY -------- Ion Engine Light Ion Engine Light Treads Heat Sink Heat Sink ECM Suite Beam Cannon Assault Rifle Mini Grenade Launcher Mining Laser [Rating: 9] Favorites ----------- Power Light Ion Engine Engine Light Ion Engine Propulsion Light Treads Treads Light Treads Leg Aluminum Leg Utility Huge Storage Unit Device Seismic Detector Storage Huge Storage Unit Protection Light Armor Plating Weapon Beam Cannon Energy Gun EM Pulse Gun Energy Cannon Beam Cannon Ballistic Gun Assault Rifle Launcher Mini Grenade Launcher Special Weapon Mining Laser Build | -11 -10 -10 ------- Run | Yrd Mat Min Slots Evolved . | . . . Power . | . . . Propulsion . | . . . Utility . | . . . Weapon . | . . . Parts Attached 24 | 2 17 5 Power 2 | . 2 . Engine 2 | . 2 . Core . | . . . Reactor . | . . . Propulsion 5 | . 3 2 Treads 5 | . 3 2 Leg . | . . . Wheel . | . . . Hover . | . . . Flight . | . . . Utility 10 | 1 7 2 Device 4 | 1 2 1 Storage 4 | . 4 . Processor . | . . . Hackware . | . . . Protection 2 | . 1 1 Artifact . | . . . Weapon 7 | 1 5 1 Energy Gun . | . . . Energy Cannon 1 | . 1 . Ballistic Gun 2 | 1 1 . Ballistic Cannon . | . . . Launcher 3 | . 2 1 Special Weapon 1 | . 1 . Impact Weapon . | . . . Slashing Weapon . | . . . Piercing Weapon . | . . . Special Melee Weapon . | . . . Unidentified Prototypes . | . . . Parts Lost 8 | . 3 5 Power 1 | . 1 . Propulsion 2 | . . 2 Utility 2 | . 1 1 Weapon 3 | . 1 2 Highest Loss Streak 2 | . 1 2 To Critical Strikes . | . . . Average Backups 13 | 6 13 16 Power 1 | 1 1 2 Propulsion 2 | 4 1 2 Utility 6 | . 5 8 Weapon 3 | 1 3 3 Tool/Special . | . . . Unused Backups 9 | . 5 4 Power . | . . . Propulsion 3 | . 3 . Utility 5 | . 1 4 Weapon 1 | . 1 . Tool/Special . | . . . Average Slot Usage (%) 98 | . 99 95 Engine 13 | . 13 14 Treads 26 | . 25 28 Leg 1 | . 2 . Device 13 | . 13 13 Storage 14 | . 14 14 Energy Cannon 9 | . 10 9 Ballistic Gun 16 | . 17 13 Peak Build Rating 9 | 7 9 9 Average Rating 7 | 6 7 7 On Entrance 7 | 6 7 8 Naked Turns . | . . . Heaviest Build 92 | 12 92 91 Greatest Support 40 | 20 40 40 Greatest Overweight (x) 4 | . 4 2 Average Overweight (x) 1 | . 1 2 Largest Inventory Capacity 25 | 8 25 25 Average Capacity 23 | 8 23 25 Most Carried 18 | 7 17 18 Average Carried 13 | 6 13 16 Final Capacity 25 | 8 25 25 Final Carried 17 | 7 17 15 Class Distribution -------------------- 100% | Mutant Dominant Class ---------------- Mutant | -10/Materials Mutant | -10/Mines Resources | -11 -10 -10 ----------- Run | Yrd Mat Min Matter Collected 818 | 250 471 97 Remotely . | . . . Salvage Created 886 | 19 729 138 Parts 63 | 3 57 3 Haulers Intercepted 2 | . 2 . Recyclers Shooed 2 | . 2 . Parts Field Recycled . | . . . Retrieved Matter . | . . . Parts Self-Destructed . | . . . Prevented . | . . . Kills | -11 -10 -10 ------- Run | Yrd Mat Min Combat Hostiles Destroyed 27 | . 20 7 Guns 3 | . 2 1 Cannons 12 | . 10 2 AOE 12 | . 8 4 Classes Destroyed 9 | 1 7 1 Worker 3 | . 3 . Builder 1 | . 1 . Tunneler 8 | 1 4 3 Hauler 2 | . 2 . Operator 1 | . 1 . Watcher 3 | . 3 . Swarmer 9 | . 9 . Grunt 15 | . 11 4 Assembled 3 | . . 3 Best Kill Streak 10 | 1 10 7 Combat Bots Only 4 | . 4 4 Max Kills in Single Turn 4 | 1 4 3 Gunslinging . | . . . Exploded 2 | . 2 1 Melee . | . . . Uniques/NPCs Destroyed . | . . . Combat | -11 -10 -10 -------- Run | Yrd Mat Min Hostile Shots Fired 163 | . 109 54 Missed 38 | . 30 8 Hits 125 | . 79 46 Projectile 125 | . 79 46 Critical Strikes 2 | . 2 . Part Disruptions 1 | . . 1 Damage Taken 1526 | . 842 684 Core 267 | . 159 108 Absorbed by Shields . | . . . Regen/Repaired (Parts) 70 | . 70 . Core Remaining (%) 100 | 100 . . Volleys Fired 92 | 10 61 21 Largest 2 | 2 2 2 Hottest 100 | 40 100 80 Shots Fired 160 | 20 110 30 Gun 95 | 20 57 18 Cannon 52 | . 43 9 Launcher 12 | . 9 3 Special 1 | . 1 . Kinetic 95 | 20 57 18 Thermal 53 | . 44 9 Explosive 12 | . 9 3 Electromagnetic . | . . . Robot Hit Streak 11 | 4 8 11 Robot Miss Streak 3 | 3 3 2 Penetration Max . | . . . Secondary Targets . | . . . Shots Hit Robots 93 | 11 60 22 Core Hits 64 | 2 44 18 Critical Kills . | . . . Critical Parts Destroyed 1 | 1 . . Critical Strikes 1 | 1 . . Destroy 1 | 1 . . Melee Attacks . | . . . Impact . | . . . Slashing . | . . . Piercing . | . . . Sneak Attacks . | . . . Combat Hostiles . | . . . Follow-up Attacks . | . . . Damage Inflicted 2650 | 109 1868 673 Guns 560 | 109 346 105 Cannons 650 | . 525 125 Explosions 1413 | . 978 435 Melee . | . . . Ramming 27 | . 19 8 Kinetic 560 | 109 346 105 Thermal 888 | . 763 125 Explosive 1175 | . 740 435 Electromagnetic . | . . . Impact . | . . . Slashing . | . . . Piercing . | . . . Highest Corruption . | . . . Average Corruption . | . . . Corruption Purged . | . . . Corruption Blocked . | . . . Overload Shots . | . . . Overflow Damage 167 | . 161 6 Projectiles . | . . . Explosions 165 | . 159 6 Melee 2 | . 2 . Knockbacks . | . . . Impact . | . . . Kinetic . | . . . Secondary . | . . . Self-Inflicted Damage 97 | . 62 35 Shots 3 | . 1 2 Rammed 5 | . 2 3 Targets Rammed 5 | . 2 3 Kicked . | . . . Crushed . | . . . Highest Temperature 285 | . 196 285 Average Temperature 74 | . 63 111 Received Heat Transfer 567 | . 279 288 Effects 2 | . . 2 Interference 2 | . . 2 Siege Activations . | . . . Martial Activations . | . . . Shielding Activations . | . . . Robots Disrupted . | . . . Combat Hostiles . | . . . Robots Corrupted 1 | . 1 . Combat Hostiles . | . . . Parts Fried 1 | . 1 . Impact Corruptions 1 | . 1 . Robots Melted . | . . . Combat Hostiles . | . . . Parts Melted 2 | . 2 . Heat Transferred 1669 | . 1410 259 Parts Sabotaged . | . . . Parts Stolen . | . . . Parts Stripped . | . . . Power Chain Reactions . | . . . Alert | -11 -10 -10 ------- Run | Yrd Mat Min Maximum Alert Level 1 | . 1 . Low Security (%) 94 | 100 92 100 Level 1 5 | . 7 . Level 2 . | . . . Level 3 . | . . . Level 4 . | . . . Level 5 . | . . . High Security . | . . . Max Security . | . . . Peak Influence 351 | . 351 105 Initial 64 | . . 64 Average 68 | . 80 29 Influence Increases 879 | 5 761 113 Destroy 0b10 Robot/C 480 | . 400 80 Destroy 0b10 Robot/NC 90 | 5 70 15 Destroy Leader 90 | . 90 . Successful Hack 10 | . 10 . Select Force Hacks 60 | . 60 . Disable Machine 45 | . 45 . Destroy Structure 104 | . 86 18 Influence Decreases 866 | 5 596 265 Entered New Map 101 | . . 101 Time Decay 565 | 5 416 144 Lost Part 50 | . 30 20 Purge Threat 150 | . 150 . Squads Dispatched 4 | . 4 . Investigation 2 | . 2 . Extermination . | . . . Reinforcement 2 | . 2 . Assault . | . . . Garrison . | . . . Intercept . | . . . Searches Triggered . | . . . Construction Impeded . | . . . Haulers Reinforced . | . . . Active Scanning Responses . | . . . Cargo Convoy Interrupts . | . . . Stealth | -11 -10 -10 --------- Run | Yrd Mat Min Distress Signals 1 | . 1 . Communications Jammed . | . . . Distress Signals . | . . . Times Spotted 34 | . 27 7 Peak Tracking Total 4 | . 4 4 Tactical Retreats . | . . . Traps | -11 -10 -10 ------- Run | Yrd Mat Min Traps Triggered . | . . . Indirectly . | . . . Trap Hack Attempts . | . . . Triggered . | . . . Disarmed . | . . . Reprogrammed . | . . . Reused . | . . . Traps Extracted . | . . . Installed . | . . . Triggered . | . . . Machines | -11 -10 -10 ---------- Run | Yrd Mat Min Machines Disabled 3 | . 3 . Max in Single Turn 3 | . 3 . Machines Repaired . | . . . Machines Dismantled . | . . . Machines Sabotaged . | . . . Overloaded Fab Kills . | . . . Hacking | -11 -10 -10 --------- Run | Yrd Mat Min Machines Accessed 9 | . 9 . Terminals 6 | . 6 . Fabricators . | . . . Repair Stations 1 | . 1 . Recycling Units 2 | . 2 . Scanalyzers . | . . . Garrison Access . | . . . Total Hacks 24 | . 24 . Successful 17 | . 17 . Failed 7 | . 7 . Catastrophic 1 | . 1 . Database Lockouts . | . . . Manual 16 | . 16 . Terminals 17 | . 17 . Fabricators . | . . . Repair Stations 2 | . 2 . Recycling Units 5 | . 5 . Scanalyzers . | . . . Garrison Access . | . . . Terminal Hacks 5 | . 5 . Robot Analysis 1 | . 1 . Alert Level 1 | . 1 . Unreport Threat 1 | . 1 . Locate Traps 2 | . 2 . Fabricator Hacks . | . . . Repair Station Hacks 2 | . 2 . Scan Component 1 | . 1 . Repair 1 | . 1 . Recycling Unit Hacks 1 | . 1 . Retrieve Components 1 | . 1 . Scanalyzer . | . . . Garrison Access Hacks . | . . . Unauthorized Hacks 9 | . 9 . Terminals 7 | . 7 . Botnet 1 | . 1 . Operators 1 | . 1 . Skim 5 | . 5 . Fabricators . | . . . Repair Stations . | . . . Recycling Units 2 | . 2 . Tunnel 2 | . 2 . Scanalyzers . | . . . Garrison Access . | . . . Data Cores Recovered 1 | . 1 . Used 1 | . 1 . Hacking Detections 8 | . 8 . Full Trace Events . | . . . Feedback Events . | . . . Feedback Blocked . | . . . Robot Schematics Acquired . | . . . Robots Built . | . . . Authchips . | . . . Time . | . . . Total Robot Build Rating . | . . . Part Schematics Acquired . | . . . Parts Built . | . . . Authchips . | . . . Time . | . . . Total Part Build Rating . | . . . Parts Repaired 1 | . 1 . Time 26 | . 26 . Parts Recycled . | . . . Recycled Matter . | . . . Retrieved Matter . | . . . Retrieved Components 10 | . 10 . Parts Scanalyzed . | . . . Part Schematics Acquired . | . . . Parts Damaged . | . . . Bothacking | -11 -10 -10 ------------ Run | Yrd Mat Min Used RIF Installer . | . . . Robots Hacked . | . . . Non-combat . | . . . Combat . | . . . Robot Hacks Applied . | . . . Relay Couplers Released . | . . . Fabnet Peak Effective % . | . . . Robots Rewired . | . . . Allies Hacked . | . . . Hacks Repelled . | . . . Allies | -11 -10 -10 -------- Run | Yrd Mat Min Total Allies . | . . . Largest Group . | . . . Highest-Rated Group . | . . . Highest-Rated Ally . | . . . Total Orders . | . . . Ally Attacks . | . . . Total Damage . | . . . Kills . | . . . Allies Corrupted . | . . . Allies Melted . | . . . Intel | -11 -10 -10 ------- Run | Yrd Mat Min Active Infowar (turns) 1994 | 5 1430 559 Seismic 1994 | 5 1430 559 Robot Analysis Total 1 | . 1 . Derelict Logs Recovered 1 | . . 1 Drone Launches . | . . . Drone Recoveries . | . . . Exploration | -11 -10 -10 ------------- Run | Yrd Mat Min Turns Passed 3061 | 69 2357 635 Spaces Moved 929 | 13 743 173 Core . | . . . Treads 786 | . 613 173 Legs 143 | 13 130 . Wheels . | . . . Hover . | . . . Flight . | . . . Fastest Speed 120 | 120 120 320 Average Speed 285 | 120 280 320 Slowest Speed 480 | 120 480 320 Overloaded Moves . | . . . Propulsion Burnouts . | . . . Robots Hopped . | . . . Potential Cave-ins . | . . . Cave-ins Triggered . | . . . Exploration Rate (%) 50 | 3 97 51 Regions Visited 2 Branch Regions 1 Pre-discovered Areas 2 | . 2 . Known Exits Taken . | . . . Unknown Exits Taken 2 | 1 1 . Scrap Searched 1 | . . 1 Spaces Dug 1 | . 1 . Terrain Destroyed 122 | . 92 30 Melee . | . . . Projectile 1 | . 1 . AOE 121 | . 91 30 Terrain Rammed . | . . . Walls Destroyed . | . . . Machines Disabled . | . . . Actions | -11 -10 -10 --------- Run | Yrd Mat Min Total 1165 | 47 895 223 Wait 80 | 22 42 16 Move 927 | 12 742 173 Hop . | . . . Pick Up 17 | 1 15 1 Fast Attach 3 | 1 2 . Attach 6 | . 2 4 Detach 1 | . . 1 Swap 26 | 1 21 4 Drop 8 | . 8 . Fire 92 | 10 61 21 Melee . | . . . Ram . | . . . Kick . | . . . Crush 5 | . 2 3 Escape Stasis . | . . . Rewire . | . . . Trap . | . . . Miscellaneous . | . . . Route ------- -11/Scrapyard -10/Materials (discovered 6 exits: [*Mat x3] / [*Min x2] / [*Sub]) -10/Mines (discovered 2 exits: [*Mat x2]) History --------- Turn | Location | Event 1 | -11/Scrapyard | Discovered new exit (range 2) 70 | -11/Scrapyard | Entered Materials 314 | -10/Materials | Build established: Mutant 364 | -10/Materials | Discovered new exit (range 13) 623 | -10/Materials | Discovered new exit (range 15) 1157 | -10/Materials | Discovered new exit (range 10) 1282 | -10/Materials | Repaired Lgt. Treads 1370 | -10/Materials | Discovered new exit (range 8) 1716 | -10/Materials | Discovered new exit (range 5) 2041 | -10/Materials | Core integrity fell below 50% 2226 | -10/Materials | Discovered new exit (range 15) 2427 | -10/Materials | Entered Mines 2709 | -10/Mines | Received a Rocket Launcher from a helpful Derelict 2761 | -10/Mines | Learned 2 Materials zone layouts 2806 | -10/Mines | Discovered new exit (range 16) 2812 | -10/Mines | Excavation squad dispatched 2812 | -10/Mines | A large section of the Mines collapsed 2857 | -10/Mines | Core integrity fell below 20% 2985 | -10/Mines | Discovered new exit (range 12) 3062 | -10/Mines | Destroyed by Dirty Bomb Trap Last Messages --------------- 02901_ T-07 Excavator is excavating. 02902_ Acquired 31 matter. 02906_ T-07 Excavator is excavating. 02908_ The unstable cave ceiling collapses. 02910_ T-07 Excavator is excavating. 02912_ The unstable cave ceiling collapses. 02914_ T-07 Excavator is excavating. 02925_ A derelict is hurriedly installing traps. 02927_ RO-X6O(g): "Hehe, this'll put a wrench in their mining defense operations..." 02927_ RO-X6O(g) slips into the shadows. 02979_ The unstable cave ceiling collapses. 02985_ EXIT=FOUND 03051_ Lgt. Assault Rifle destroyed. 03052_ Slammed into as-26101. 03060_ Lgt. Treads destroyed. 03062_ Slammed into as-26101. 03062_ as-26101 triggered Dirty Bomb Trap. 03062_ An explosion rips through the floor. 03062_ as-26101 destroyed. Map ----- +----------------------------------------------------+ | | | | | | | | | | | | | ???????????????????????????????????????????? | | ???????????????????????????????????????????? | | ???????????????????????????????????????????? | | ?????????????????????????????####?????#????? | | ?????????????????????????????# ???? ????? | | ?????????????????????????????# ????? | | ?????????????????????????????# """ """????? | | ?????????????????????????????# """ """????? | | ???????????????????###???????? """ ""?????? | | ??????????????????## ##?????? ???????? | | ?????????????????## ###???? ????????? | | ????????????????## ##??? ?????????? | | ????????????????# ##### #??????????? | | ????????????????# #??????????? | | ????????????????# ###### #??????????? | | ???????????????## #####?# ####???????? | | ??????????????## < ^ ^ ### # #####???? | | ??????????????# ## # ##??? | | ??????????????# # #??? | | ??????????????## # @ #??? | | ???????????????## # ##??? | | ????????????????## # ####???? | | ?????????????????## ######### ##??????? | | ??????????????????###????????# < ##???????? | | ?????????????????????????????# #????????? | | ?????????????????????????????# ##???????? | | ?????????????????????????????# ##??????? | | ?????????????????????????????## #??????? | | ??????????????????????????????## #??????? | | ??????????????????????????????# ##??????? | | ??????????????????????????????# ##??????? | | ????????????????????????????### # #??????? | | ????????????????????????????# ## #??????? | | ?????????????????????????????# ####?????? | | ?????????????????????????????# #?????? | | ?????????????????????????????# # ##?????? | | ?????????????????????????????# # = ##?????? | | ?????????????????????????????# | ##????? | | ???????????????????????????#### #????? | | ???????????????????????????# # #????? | | ????????????????????##?????# ### #????? | | ????????????????????? ????# #?### #####???? | | ??????????????????????# ???# #??#### #??? | | ??????????????????????# ### ##??## #??? | +----------------------------------------------------+ Best States ------------- Heat Dissipation 35 Energy Generation 10 Energy Capacity 250 Matter Stores 300 Matter Capacity 300 Sight Range 16 Terrain Scan Density 10 Armor Coverage 150 Evasion (%) 55 Recoil Reduction 2 Item Schematics ----------------- None Robot Schematics ------------------ None Fabricated ------------ Nothing Repaired ---------- Lgt. Treads | 50% | -10/Materials Alien Tech Used ----------------- None Achievements -------------- None Challenges ------------ None Game ------ Seed PotentialCoreSpiker Manual? 0 Play Time 00:12:46 Cumulative 493.3 hours Start 2025.06.26 @ 14:48:52 End 2025.06.26 @ 14:59:34 Sessions 1 Manual Loads 0 Difficulty Rogue Special Mode None Game No. 259 Rogue 196 Adventurer 63 Explorer 0 Win Type - Total 9 Types 8/0/0/1/0/0/0/0/0/0 Lore% 90 Gallery% 81 Achievement% 67 Wizard Run 0 Options --------- Layout 2 ASCII 0 Keyboard 1 Movement Numpad Keybinds 0 Fullscreen 2 Font 24/Terminus Map View 50x44 Zoom Use 0% Tactical HUD 1 Map Filters NONE Filters NONE Steam 1 RUN: f3050421-4c45-45bd-967a-8fbf941b1b76